bitfinex/quotes_ETHUSD_20251128
["timestamp","ask_amount","ask_price","bid_price","bid_amount"]
[1764366665907,24.39504549,3051.2,3051.1,0.001]
[1764366666203,20.04106849,3051.2,3051.1,0.001]
[1764366666904,20.82088649,3051.2,3051.1,0.001]
[1764366667797,26.14390749,3051.2,3051.1,0.001]
[1764366668803,26.44390749,3051.2,3051.1,0.001]
[1764366670510,25.44390749,3051.2,3051.1,0.001]
[1764366671114,19.59520749,3051.2,3051.1,0.001]
[1764366671695,25.93420749,3051.2,3051.1,0.001]
[1764366671911,26.07388349,3051.2,3051.1,0.001]
[1764366672417,25.38376749,3051.2,3051.1,0.001]
[1764366673001,26.07392249,3051.2,3051.1,0.001]
[1764366673403,25.38376749,3051.2,3051.1,0.001]
[1764366674086,26.88996749,3051.2,3051.1,0.001]
[1764366674482,18.72549896,3051.2,3051.1,0.001]
[1764366674682,6.64340523,3051.2,3051.1,0.6651]
[1764366674884,6.64340523,3051.2,3051.1,0.4778]
[1764366675880,6.64340523,3051.2,3051.1,4.24640647]
[1764366677804,0.30440523,3051.2,3051.1,0.9689]
[1764366691935,0.30440523,3051.2,3051.1,0.4778]
[1764366694738,0.002,3051.3,3051.1,0.4778]
[1764366694943,0.30503834,3051.2,3051.1,0.4778]
[1764366699121,0.30503834,3051.2,3051.1,0.9446]
[1764366699323,0.30503834,3051.2,3051.1,0.4778]
[1764366701219,0.002,3051.3,3051.1,0.4778]
[1764366701427,0.30547026,3051.2,3051.1,0.4778]
[1764366705555,0.30547026,3051.2,3051.1,0.9446]
[1764366706353,0.30547026,3051.2,3051.1,0.4778]
[1764366710568,0.30547026,3051.2,3051.1,0.9446]
[1764366713900,0.30547026,3051.2,3051.1,4.66371314]
[1764366714048,0.30547026,3051.2,3051.1,4.76371314]
[1764366715074,0.30547026,3051.2,3051.1,4.66371314]
[1764366718189,0.30547026,3051.2,3051.1,4.76371314]
[1764366718889,0.30547026,3051.2,3051.1,5.89481125]
[1764366719879,0.30547026,3051.2,3051.1,6.20028151]
[1764366720272,0.30547026,3051.2,3051.1,5.89481125]
[1764366720480,0.30547026,3051.2,3051.1,6.20028151]
[1764366720787,0.30547026,3051.2,3051.1,5.89481125]
[1764366722846,0.30547026,3051.2,3051.1,5.48930725]
[1764366723052,0.30547026,3051.2,3051.1,5.69630725]
[1764366723979,0.74057026,3051.2,3051.1,0.82659411]
[1764366724181,25.1371374,3051.2,3051.0,0.001]
[1764366724480,25.1371374,3051.2,3049.6,0.4668]
[1764366724481,23.83796311,3050.7,3049.6,0.30547026]
[1764366724679,23.83796311,3050.7,3048.8,0.1831]
[1764366724680,28.8704812,3050.5,3048.9,0.4668]
[1764366724881,28.8704812,3050.5,3049.2,3.27954799]
[1764366724882,30.85225016,3050.5,3049.2,3.27954799]
[1764366725178,31.06216359,3050.5,3049.2,3.27947794]
[1764366725351,31.06216359,3050.5,3049.1,3.7464535]
[1764366725547,31.46766759,3050.5,3049.0,3.2797211]
[1764366725765,31.56766759,3050.5,3049.1,3.27965371]
[1764366726047,31.46766759,3050.5,3049.2,3.27954731]
[1764366726247,34.84581871,3050.5,3049.0,3.27976121]
[1764366726451,34.84581871,3050.5,3049.0,6.55952506]
[1764366726874,34.84581871,3050.5,3049.3,0.4946]
[1764366727667,34.74581871,3050.5,3049.3,0.4946]
[1764366727979,32.38417671,3050.5,3049.3,0.4946]
[1764366728486,32.38417671,3050.5,3049.1,0.4946]
[1764366728487,34.74581871,3050.5,3049.1,0.4946]
[1764366728654,34.84581871,3050.5,3049.0,3.27976121]
[1764366729180,0.43068062,3050.0,3048.8,0.1831]
[1764366729367,15.514971,3049.7,3048.8,0.1831]
[1764366729683,11.132257,3049.5,3048.8,0.1831]
[1764366729883,0.30530177,3049.4,3048.8,0.1831]
[1764366730179,0.30530177,3049.3,3048.8,0.1831]
[1764366730373,0.30530177,3049.2,3048.8,0.1831]
[1764366730572,0.30530177,3049.1,3048.8,3.46307419]
[1764366730882,0.30530177,3049.1,3048.2,3.28059444]
[1764366730883,0.6373,3048.9,3047.7,0.98555342]
[1764366731182,0.6373,3048.9,3047.2,0.17133438]
[1764366731183,0.72559411,3048.0,3047.2,0.17133438]
[1764366731368,0.0045,3047.8,3047.2,0.76593438]
[1764366731680,0.30807475,3047.8,3047.2,0.5946]
[1764366732048,0.72559411,3047.7,3047.2,0.5946]
[1764366732254,0.72559411,3047.7,3047.2,4.11317305]
[1764366732453,0.72559411,3047.7,3047.2,4.60777305]
[1764366732680,0.72559411,3047.7,3047.2,1.32612333]
[1764366732879,0.72559411,3047.7,3047.2,4.60781846]
[1764366733465,0.4738,3047.6,3047.2,0.73152333]
[1764366733786,0.4738,3047.6,3047.0,3.28189047]
[1764366733956,0.4738,3047.6,3046.9,0.6826]
[1764366734156,0.4738,3047.6,3046.9,0.188]
[1764366734354,1.19939411,3047.6,3046.7,6.74561219]
[1764366734580,1.19939411,3047.6,3046.7,7.24021219]
[1764366734767,0.4738,3047.5,3046.7,7.24021219]
[1764366734966,0.4738,3047.5,3046.8,0.75472122]
[1764366736122,0.4738,3047.5,3046.9,0.4619]
[1764366736459,0.4738,3047.5,3046.9,3.74388514]
[1764366739453,0.4738,3047.5,3046.9,3.74488514]
[1764366739659,0.4738,3047.5,3046.9,0.101]
[1764366739890,0.90325747,3047.5,3046.9,0.001]
[1764366740188,4.1846449,3047.5,3046.9,0.001]
[1764366740397,0.4878,3047.4,3046.9,3.28300928]
[1764366740757,0.4878,3047.4,3046.9,3.72778527]
[1764366740957,0.4277,3047.0,3046.5,0.001]
[1764366741178,0.0043,3046.8,3046.5,0.001]
[1764366741385,0.4235,3046.6,3046.5,0.001]
[1764366742184,0.9113,3046.6,3046.5,0.001]
[1764366742369,24.95626311,3046.6,3046.5,0.001]
[1764366742574,9.47309918,3046.6,3046.5,0.001]
[1764366742765,6.97747287,3046.6,3046.5,0.001]
[1764366742965,10.59050102,3046.6,3046.5,0.001]
[1764366743161,10.2598204,3046.6,3046.5,0.001]
[1764366743682,16.5953264,3046.6,3046.5,0.001]
[1764366744501,2.32493287,3046.6,3046.5,0.001]
[1764366744804,38.82331605,3046.6,3043.9,0.1812]
[1764366744993,38.82331605,3046.6,3044.7,0.0012]
[1764366744994,1.13109811,3045.7,3044.7,0.0012]
[1764366745301,0.5879,3044.8,3044.0,0.4619]
[1764366745595,0.207,3045.0,3044.1,0.1012]
[1764366745794,0.207,3045.0,3044.2,0.38482294]
[1764366745961,0.207,3045.0,3044.3,0.4631]
[1764366746901,0.207,3045.0,3044.3,0.4619]
[1764366747188,1.63662127,3045.4,3044.9,0.4531]
[1764366747397,1.51231557,3045.3,3044.3,3.95463187]
[1764366747692,0.29892146,3045.2,3044.3,3.95463187]
[1764366747886,0.78672146,3045.2,3044.3,3.95463187]
[1764366748083,0.4878,3045.2,3044.2,0.84672294]
[1764366748300,0.78687243,3045.1,3044.2,0.4619]
[1764366748467,0.4878,3045.1,3044.2,0.4619]
[1764366748662,0.4878,3045.1,3044.1,3.2850248]
[1764366748869,0.72559411,3044.7,3043.9,0.4619]
[1764366749066,0.33068062,3044.7,3043.7,3.46666702]
[1764366749273,7.35567653,3044.6,3043.7,1.0105667]
[1764366749569,0.29886911,3044.5,3043.7,0.6431]
[1764366749874,12.71318673,3044.4,3043.4,0.1812]
[1764366750204,0.29886911,3044.3,3043.4,0.7431]
[1764366750369,1.11734973,3044.4,3043.5,0.4619]
[1764366750709,0.2986302,3044.3,3043.5,0.4619]
[1764366750876,0.7864302,3044.3,3043.5,0.4619]
[1764366751078,0.4878,3044.3,3043.5,0.4619]
[1764366751400,0.29891562,3044.2,3043.6,3.28558286]
[1764366751711,0.93359411,3044.5,3044.2,0.1636]
[1764366751712,0.208,3044.5,3044.2,0.1636]
[1764366751914,0.29876569,3044.4,3044.2,0.1636]
[1764366752069,0.98715221,3044.7,3044.2,0.1636]
[1764366752269,0.29878328,3044.6,3044.3,0.1]
[1764366752468,0.98699632,3045.2,3044.3,0.1]
[1764366752703,0.29913068,3045.1,3044.5,0.5531]
[1764366752996,0.29913068,3045.0,3044.5,0.1]
[1764366753310,0.29913068,3045.0,3044.3,0.208]
[1764366753311,0.29913068,3044.9,3044.7,3.28439583]
[1764366753493,0.29913068,3044.8,3044.7,3.74629583]
[1764366753675,0.29913068,3044.8,3044.7,3.28439583]
[1764366753875,0.29913068,3044.8,3044.7,3.73749583]
[1764366754402,0.29913068,3044.8,3044.7,4.19939583]
[1764366759574,0.29913068,3044.8,3044.7,4.94788574]
[1764366760906,0.29913068,3044.8,3044.7,4.93401529]
[1764366761411,0.29913068,3044.8,3044.7,4.18552538]
[1764366762214,0.29913068,3044.8,3044.7,4.19332538]
[1764366764515,0.29913068,3044.8,3044.7,4.29332538]
[1764366769482,0.29913068,3044.8,3044.7,4.50132538]
[1764366770811,0.29913068,3044.8,3044.7,4.48884198]
[1764366771915,0.29913068,3044.8,3044.7,0.1]
[1764366771916,4.47561864,3044.8,3044.7,0.1]
[1764366772216,4.47561864,3044.8,3043.9,0.1]
[1764366772217,1.12579411,3044.7,3043.9,0.1]
[1764366772389,0.29913068,3044.6,3043.9,0.1]
[1764366772591,0.29913068,3044.5,3044.1,0.1]
[1764366772805,0.29913068,3044.4,3044.1,0.1]
[1764366773010,0.29913068,3044.3,3044.1,0.1]
[1764366773210,0.29913068,3044.2,3044.1,0.1]
[1764366773411,0.29913068,3044.2,3044.1,3.38504319]
[1764366773719,0.29913068,3044.2,3044.1,3.87704319]
[1764366776720,0.29913068,3044.2,3044.1,0.592]
[1764366777727,0.29913068,3044.2,3044.1,0.492]
[1764366778420,0.29913068,3044.2,3044.1,3.77704319]
[1764366780325,0.002,3044.8,3044.7,0.1]
[1764366780536,0.002,3044.8,3044.7,0.8]
[1764366780700,0.002,3044.8,3044.3,3.28482738]
[1764366780701,0.8942,3044.8,3044.3,3.28482738]
[1764366780900,0.8942,3044.8,3044.3,3.85452738]
[1764366781095,0.8942,3044.8,3044.1,0.9071982]
[1764366781096,0.493,3044.7,3044.1,0.1539]
[1764366781329,0.493,3044.7,3044.2,0.208]
[1764366781840,0.4002,3044.3,3044.0,0.309]
[1764366782138,0.493,3044.7,3044.0,0.001]
[1764366782316,0.4939,3044.6,3044.0,0.001]
[1764366782513,0.4939,3044.6,3044.0,0.101]
[1764366782713,0.4939,3044.6,3044.0,0.001]
[1764366783031,0.4939,3044.6,3044.0,0.101]
[1764366783801,0.72759411,3044.8,3044.1,0.1539]
[1764366784204,0.72759411,3044.8,3044.1,0.6236]
[1764366784399,0.47336925,3044.8,3044.2,3.28493528]
[1764366784632,0.002,3044.8,3044.3,0.308]
[1764366784935,0.002,3044.8,3044.7,0.492]
[1764366786409,0.002,3044.8,3044.6,0.1]
[1764366786410,0.4188,3044.8,3044.6,0.1]
[1764366786639,0.4173,3044.7,3044.0,0.001]
[1764366786939,0.002,3044.8,3044.6,0.1]
[1764366787139,0.002,3044.8,3044.6,0.5827]
[1764366787352,0.002,3044.8,3044.7,0.4827]
[1764366788832,0.002,3044.8,3044.7,3.76709583]
[1764366789013,0.002,3044.8,3044.7,0.4827]
[1764366789209,0.002,3044.8,3044.7,3.76709583]
[1764366790112,0.002,3044.8,3044.6,0.308]
[1764366790113,0.002,3044.8,3044.6,3.59246699]
[1764366790913,0.002,3044.8,3044.7,0.4827]
[1764366792209,0.30637242,3044.8,3044.7,0.4827]
[1764366792428,0.002,3044.8,3044.7,0.4827]
[1764366792633,0.30636647,3044.8,3044.7,0.4827]
[1764366792828,0.30636647,3044.8,3044.7,3.67609182]
[1764366794062,0.002,3044.8,3044.7,4.13609182]
[1764366794272,0.002,3044.8,3044.7,5.50408052]
[1764366794835,0.002,3044.8,3044.6,8.5449108]
[1764366794836,0.4856,3044.8,3044.6,3.38436228]
[1764366795032,0.4782,3044.8,3044.7,0.208]
[1764366795435,0.9512,3044.8,3044.6,3.38436228]
[1764366795634,0.473,3044.7,3044.6,3.59236228]
[1764366796270,0.473,3044.7,3044.6,3.38436228]
[1764366796448,0.473,3044.7,3044.6,3.59236228]
[1764366796848,0.473,3044.7,3044.6,3.38436228]
[1764366797048,0.473,3044.7,3044.6,3.49247384]
[1764366797252,0.002,3044.8,3044.6,7.26317755]
[1764366797963,0.002,3044.8,3044.6,3.28447384]
[1764366798272,0.9354,3044.7,3044.6,3.28447384]
[1764366798943,0.002,3044.8,3044.6,12.68887549]
[1764366799144,0.002,3044.8,3044.7,0.4862]
[1764366801448,0.002,3044.8,3044.7,3.77059583]
[1764366801850,0.30646102,3044.8,3044.7,4.25199583]
[1764366802584,0.30646102,3044.8,3044.7,3.77059583]
[1764366803445,0.77946102,3044.8,3044.7,3.49239583]
[1764366805872,0.77946102,3044.8,3044.7,3.97859583]
[1764366805873,0.30646102,3044.8,3044.7,3.97859583]
[1764366806071,0.30646102,3044.8,3044.7,3.28439583]
[1764366806072,0.77946102,3044.8,3044.7,3.28439583]
[1764366806262,1.24186102,3044.8,3044.7,3.49239583]
[1764366806447,0.77946102,3044.8,3044.7,3.49239583]
[1764366807950,0.30646102,3044.8,3044.7,3.49239583]
[1764366809487,0.30646102,3044.8,3044.7,3.97859583]
[1764366814402,0.30646102,3044.8,3044.7,4.07848427]
[1764366816336,0.30646102,3044.8,3044.7,3.97859583]
[1764366816626,0.30646102,3044.8,3044.7,3.49239583]
[1764366818129,0.30646102,3044.8,3044.7,4.06778427]
[1764366818600,0.30646102,3044.8,3044.7,3.59228427]
[1764366819332,0.30646102,3044.8,3044.7,3.49239583]
[1764366824016,0.30646102,3044.8,3044.7,3.28439583]
[1764366824539,0.30646102,3044.8,3044.7,3.75989583]
[1764366824717,0.30646102,3044.8,3044.7,4.24249583]
[1764366826347,0.30646102,3044.8,3044.7,3.75989583]
[1764366827332,0.75996102,3044.8,3044.7,3.28439583]
[1764366827842,0.30646102,3044.8,3044.7,3.28439583]
[1764366828012,0.75996102,3044.8,3044.7,3.28439583]
[1764366828415,1.25816102,3044.8,3044.7,3.28439583]
[1764366829544,1.25816102,3044.8,3044.6,3.59337749]
[1764366829749,0.34056102,3044.7,3044.6,3.59337749]
[1764366831446,0.30446102,3044.7,3044.6,3.59337749]
[1764366835253,0.75796102,3044.7,3044.6,3.59337749]
[1764366836267,0.30446102,3044.7,3044.6,3.59337749]
[1764366836459,0.30446102,3044.7,3044.6,4.06887749]
[1764366838255,0.75796102,3044.7,3044.6,3.59337749]
[1764366838963,0.4535,3044.7,3044.6,3.59337749]
[1764366839140,0.7590533,3044.7,3044.6,3.59337749]
[1764366840439,0.3055533,3044.7,3044.6,3.59337749]
[1764366840635,0.3055533,3044.7,3044.6,4.06887749]
[1764366841277,0.3055533,3044.7,3044.6,3.59337749]
[1764366841473,0.3055533,3044.7,3044.6,3.28548905]
[1764366841643,0.7590533,3044.7,3044.6,3.49348905]
[1764366842176,1.2572533,3044.7,3044.6,3.49350371]
[1764366844772,1.2572533,3044.7,3044.6,3.28550371]
[1764366845682,0.7590533,3044.7,3044.6,3.28550371]
[1764366847662,0.3055533,3044.7,3044.6,3.28550371]
[1764366848185,0.3055533,3044.7,3044.6,3.77970371]
[1764366848798,0.3055533,3044.7,3044.6,3.28550371]
[1764366849160,0.3055533,3044.7,3044.6,3.77970371]
[1764366849489,0.3055533,3044.7,3044.6,3.28550371]
[1764366849988,0.30551496,3044.7,3044.6,3.28550371]
[1764366850592,0.30751496,3044.7,3044.6,3.28550371]
[1764366850760,0.30751496,3044.7,3044.6,3.98770371]
[1764366851385,0.30751496,3044.7,3044.6,3.77970371]
[1764366851590,0.30751496,3044.7,3044.6,3.98770371]
[1764366852987,0.30751496,3044.7,3044.6,3.49350371]
[1764366854463,0.30751496,3044.7,3044.6,5.08164204]
[1764366854762,4.53531079,3044.7,3044.6,0.001]
[1764366855356,5.4689049,3044.7,3044.6,0.001]
[1764366855562,28.91195452,3044.7,3044.6,0.001]
[1764366855767,28.01735693,3044.7,3044.6,0.001]
[1764366856301,35.41941048,3044.7,3044.6,0.001]
[1764366856458,35.8500911,3044.7,3044.6,0.001]
[1764366856662,39.9963511,3044.7,3044.6,0.001]
[1764366857390,39.8963511,3044.7,3044.6,0.001]
[1764366857588,39.9963511,3044.7,3044.6,0.001]
[1764366858758,39.8963511,3044.7,3044.6,0.001]
[1764366858980,39.9963511,3044.7,3044.6,0.001]
[1764366859487,39.8963511,3044.7,3044.6,0.001]
[1764366859689,0.72559411,3043.9,3042.7,3.28653584]
[1764366859892,0.51351496,3043.8,3042.9,0.09988844]
[1764366860106,0.51351496,3043.7,3042.9,0.09988844]
[1764366860307,0.30551496,3043.6,3042.9,0.09988844]
[1764366860606,0.4854,3043.0,3042.7,3.28653584]
[1764366860793,0.30551496,3042.9,3042.6,3.3865158]
[1764366860988,0.4854,3043.0,3042.6,3.3865158]
[1764366861175,0.30396056,3042.9,3042.6,4.21397066]
[1764366861375,0.30396056,3042.9,3042.4,3.44586749]
[1764366861376,0.30372665,3042.8,3042.4,3.44586749]
[1764366861586,0.30372665,3042.7,3042.5,0.4521]
[1764366861791,0.30372665,3042.6,3042.5,0.4521]
[1764366862182,0.30372665,3042.6,3042.5,0.452]
[1764366862783,0.30372665,3042.6,3042.5,0.9041]
[1764366863212,0.653,3043.1,3042.5,4.19087074]
[1764366863509,0.30318571,3043.0,3042.5,4.29075918]
[1764366863706,0.30318571,3042.9,3042.6,0.09988844]
[1764366863876,0.30318571,3042.8,3042.6,0.09988844]
[1764366864085,0.30318571,3042.7,3042.6,0.55198844]
[1764366864393,0.30299927,3042.7,3042.6,0.55198844]
[1764366864604,0.30299927,3042.7,3042.6,1.00398844]
[1764366864800,0.30299927,3042.7,3042.4,3.44586904]
[1764366864801,0.78839927,3042.7,3042.4,3.44586904]
[1764366865006,0.72559411,3043.0,3042.4,3.44590409]
[1764366865007,0.4602,3043.0,3042.4,3.44590409]
[1764366865207,0.76319907,3042.9,3042.4,3.44590409]
[1764366865404,0.30299907,3042.8,3042.4,6.73278286]
[1764366865589,0.30299907,3042.7,3042.4,7.18488286]
[1764366865789,0.46646407,3043.0,3042.4,6.73278286]
[1764366865990,0.30283764,3042.9,3042.6,0.452]
[1764366866189,0.30283764,3042.8,3042.6,0.452]
[1764366866389,0.653,3043.1,3042.6,0.452]
[1764366866590,0.30273062,3043.0,3042.6,0.55188844]
[1764366866786,0.30273062,3042.9,3042.6,0.55188844]
[1764366867117,0.30273062,3042.8,3042.6,0.55188844]
[1764366867417,0.30261243,3042.9,3042.6,3.83848087]
[1764366867625,0.653,3043.1,3042.7,0.452]
[1764366867829,0.30261255,3043.0,3042.7,0.452]
[1764366868004,0.30261255,3042.9,3042.7,0.452]
[1764366868206,0.30254044,3042.9,3042.7,0.452]
[1764366869404,0.208,3043.3,3042.8,1.00398844]
[1764366869604,0.30249839,3043.2,3042.9,0.55188844]
[1764366869801,0.30249839,3043.1,3042.9,0.55188844]
[1764366870023,0.76269839,3043.2,3042.9,0.452]
[1764366870333,0.30249839,3043.1,3042.7,6.67290942]
[1764366870633,0.30249839,3043.2,3042.7,7.12500942]
[1764366870837,0.30249839,3043.1,3042.7,7.12500942]
[1764366871129,0.30249839,3043.2,3042.7,7.12500942]
[1764366871342,0.30249839,3043.1,3042.7,7.12500942]
[1764366871535,0.30249839,3043.2,3042.7,7.12500942]
[1764366871733,0.30249839,3043.1,3042.7,7.12500942]
[1764366871933,0.30264574,3043.2,3042.7,6.57302098]
[1764366872238,0.30264574,3043.4,3042.9,0.09988844]
[1764366872409,0.30264574,3043.3,3042.9,0.09988844]
[1764366872731,0.4602,3043.5,3042.9,0.09988844]
[1764366872931,0.30266867,3043.4,3042.9,0.09988844]
[1764366873131,0.30266867,3043.3,3042.9,0.55198844]
[1764366873433,0.50127113,3043.5,3042.9,0.55198844]
[1764366873642,0.30270304,3043.4,3042.9,0.55198844]
[1764366873819,0.30270304,3043.3,3043.0,3.28623069]
[1764366874019,0.72559411,3043.6,3043.3,0.09988844]
[1764366874340,0.30271163,3043.5,3043.3,0.09988844]
[1764366874636,0.30271163,3043.4,3043.3,0.09988844]
[1764366875034,0.30271163,3043.4,3043.3,0.55188844]
[1764366875742,0.30271163,3043.4,3043.3,3.83779518]
[1764366875948,6.34,3043.7,3043.3,4.31429518]
[1764366876152,0.302881,3043.6,3043.3,3.83779518]
[1764366876319,0.302881,3043.6,3043.1,3.49408413]
[1764366876320,0.4736,3043.4,3043.1,3.49408413]
[1764366876647,0.4978,3043.6,3043.1,3.59397257]
[1764366876849,0.80074705,3043.5,3043.1,6.78020683]
[1764366877044,0.30294705,3043.4,3043.1,3.49408413]
[1764366877246,0.4978,3043.4,3043.1,3.49408413]
[1764366878654,0.4978,3043.4,3043.1,6.78020683]
[1764366879152,0.4736,3043.2,3043.0,3.28617347]
[1764366879353,0.30324269,3043.1,3043.0,3.28617347]
[1764366879652,0.43644269,3043.1,3043.0,3.28617347]
[1764366882627,0.93424269,3043.1,3043.0,3.28617347]
[1764366883350,0.43644269,3043.1,3043.0,3.28617347]
[1764366885965,0.43644269,3043.1,3042.9,3.49428021]
[1764366886172,0.30324269,3043.0,3042.9,3.49428021]
[1764366886527,0.30324269,3043.0,3042.9,3.98698021]
[1764366889552,0.30324269,3043.0,3042.9,3.98798021]
[1764366891169,0.77684269,3043.0,3042.9,3.28728021]
[1764366891969,0.30324269,3043.0,3042.9,3.28728021]
[1764366892144,0.30324269,3043.0,3042.9,3.77998021]
[1764366892345,0.30324269,3043.0,3042.9,8.83835878]
[1764366896778,0.30324269,3043.0,3042.9,3.77998021]
[1764366897979,0.30324269,3043.0,3042.9,8.83835878]
[1764366899047,0.30324269,3043.0,3042.9,9.31485878]
[1764366899251,0.30324269,3043.0,3042.9,9.41474722]
[1764366899785,0.30324269,3043.0,3042.9,9.31485878]
[1764366900961,0.30324269,3043.0,3042.9,10.70566661]
[1764366904079,0.30324269,3043.0,3042.9,7.4193864]
[1764366904273,0.30324269,3043.0,3042.9,9.4148057]
[1764366904885,0.30324269,3043.0,3042.9,4.35642713]
[1764366905352,0.30324269,3043.0,3042.9,3.87992713]
[1764366905549,0.30324269,3043.0,3042.9,4.35922713]
[1764366906386,0.30324269,3043.0,3042.9,9.4176057]
[1764366906609,0.30324269,3043.0,3042.9,11.270238]
[1764366906774,0.30324269,3043.0,3042.9,11.675742]
[1764366908591,0.30324269,3043.0,3042.9,5.73255943]
[1764366908756,0.30324269,3043.0,3042.9,5.94055943]
[1764366908962,0.30324269,3043.0,3042.9,9.6256057]
[1764366909591,0.30324269,3043.0,3042.9,9.04641726]
[1764366909989,0.30324269,3043.0,3042.9,3.98803869]
[1764366910362,0.30324269,3043.0,3042.9,4.08792713]
[1764366911265,0.30324269,3043.0,3042.9,9.6256057]
[1764366911595,0.30324269,3043.0,3042.9,10.96527015]
[1764366912194,0.30324269,3043.0,3042.9,10.48597015]
[1764366917499,0.30324269,3043.0,3042.9,10.17808171]
[1764366917701,0.30324269,3043.0,3042.9,10.38608171]
[1764366919707,0.30324269,3043.0,3042.9,10.48597015]
[1764366920317,0.78034269,3043.0,3042.9,4.62700314]
[1764366920520,0.78034269,3043.0,3042.9,3.49533869]
[1764366921092,0.78034269,3043.0,3042.9,3.59522713]
[1764366921719,1.26494269,3043.0,3042.9,0.30888844]
[1764366922221,1.23844269,3043.0,3042.9,0.001]
[1764366923096,1.69089957,3043.0,3042.9,0.001]
[1764366927746,0.30324269,3043.0,3042.9,5.72207857]
[1764366928127,0.30324269,3043.0,3042.9,5.82196701]
[1764366928325,1.22694269,3043.0,3042.9,0.001]
[1764366936762,0.76884269,3043.0,3042.9,0.001]
[1764366937155,1.24844269,3043.0,3042.9,0.001]
[1764366937679,0.30324269,3043.0,3042.9,0.5004]
[1764366938257,0.75564269,3043.0,3042.9,0.001]
[1764366938458,0.75720789,3043.0,3042.9,0.001]
[1764366939046,1.23680789,3043.0,3042.9,0.001]
[1764366945806,0.75720789,3043.0,3042.9,0.001]
[1764366946524,1.23680789,3043.0,3042.9,0.001]
[1764366949271,0.30480789,3043.0,3042.9,6.24825933]
[1764366949579,0.30480789,3043.0,3042.9,6.98296255]
[1764366950726,0.30480789,3043.0,3042.9,10.26930124]
[1764366951507,0.30507552,3043.0,3042.9,10.1694128]
[1764366951712,0.30507552,3043.0,3042.9,10.26930124]
[1764366954182,0.30507552,3043.0,3042.9,11.25664188]
[1764366969785,0.30507552,3043.0,3042.9,10.26930124]
[1764366970190,0.17167626,3043.6,3043.0,1.35557417]
[1764366970394,0.4527,3043.8,3043.4,0.09988844]
[1764366970573,0.4527,3043.8,3043.5,0.207]
[1764366971065,0.4635,3043.6,3043.5,0.9736531]
[1764366972829,0.4635,3043.6,3043.5,4.05234391]
[1764366972963,0.4635,3043.6,3043.5,4.26034391]
[1764366976397,0.37154474,3043.9,3043.5,7.54603472]
[1764366976568,0.86024474,3043.9,3043.5,8.02803472]
[1764366976906,0.86024474,3043.9,3043.5,8.51523472]
[1764366977205,0.86024474,3043.9,3043.7,0.09988844]
[1764366977572,0.86024474,3043.9,3043.8,3.28536697]
[1764366978092,1.32124474,3043.9,3043.8,3.28536697]
[1764366979484,1.32124474,3043.9,3043.7,3.3853181]
[1764366979679,0.5161,3043.8,3043.7,3.3853181]
[1764366981499,0.0274,3043.8,3043.7,3.3853181]
[1764366982007,0.0274,3043.8,3043.6,6.6710507]
[1764366982206,0.30503674,3043.7,3043.6,3.38546784]
[1764366982403,0.30503674,3043.7,3043.6,4.63723822]
[1764366982609,0.30503674,3043.7,3043.6,5.11923822]
[1764366983276,0.30503674,3043.7,3043.6,4.63203822]
[1764366984508,0.30503674,3043.7,3043.6,3.86746784]
[1764366985513,0.30503674,3043.7,3043.6,3.2855794]
[1764366985716,0.30503674,3043.7,3043.6,3.7675794]
[1764366986214,0.30503674,3043.7,3043.6,3.2855794]
[1764366987316,0.76603674,3043.7,3043.6,3.4925794]
[1764366987623,1.25473674,3043.7,3043.4,0.66034474]
[1764366987914,0.461,3043.5,3043.2,0.207]
[1764366988111,0.30503674,3043.4,3043.2,0.207]
[1764366988318,0.34123674,3043.3,3043.2,0.207]
[1764366988816,0.82993674,3043.3,3043.2,0.207]
[1764366991216,0.34123674,3043.3,3043.2,3.28601472]
[1764366991421,0.82993674,3043.3,3043.2,3.28601472]
[1764366991788,0.34123674,3043.3,3043.2,3.28601472]
[1764366991982,0.34123674,3043.3,3043.2,3.96392846]
[1764366992188,0.34123674,3043.3,3043.2,4.0638169]
[1764366993723,0.34123674,3043.3,3043.2,3.28601472]
[1764366993900,0.82993674,3043.3,3043.2,3.28601472]
[1764366994793,0.82993674,3043.3,3043.2,3.38590316]
[1764366994794,0.34123674,3043.3,3043.2,3.38590316]
[1764366995607,0.30503674,3043.3,3043.2,4.24921472]
[1764366995836,0.30503674,3043.3,3043.2,4.34910316]
[1764366996008,0.30503674,3043.3,3043.2,5.65781168]
[1764366996801,0.30503674,3043.3,3043.2,4.69461168]
[1764366997228,0.78303674,3043.3,3043.2,4.69461168]
[1764366997433,0.30503674,3043.3,3043.2,3.49301472]
[1764366997798,0.30503674,3043.3,3043.2,3.99241472]
[1764366998122,0.30503674,3043.3,3043.2,4.55610316]
[1764366998434,0.30503674,3043.3,3043.2,4.09230316]
[1764366998634,0.30503674,3043.3,3043.2,5.35463168]
[1764367001442,0.30518698,3043.3,3043.2,5.35463168]
[1764367003345,0.30518698,3043.3,3043.2,5.14763168]
[1764367003560,0.30518698,3043.3,3043.2,5.35463168]
[1764367004556,0.30518698,3043.3,3043.2,10.41108856]
[1764367006640,0.78318698,3043.3,3043.2,9.91168856]
[1764367008348,0.78318698,3043.3,3043.2,9.81180012]
[1764367008644,0.30518698,3043.3,3043.2,10.31120012]
[1764367010150,0.30518698,3043.3,3043.2,10.41108856]
[1764367012044,0.30518698,3043.3,3043.2,10.81659256]
[1764367012252,0.30518698,3043.3,3043.2,11.73789256]
[1764367013045,0.30518698,3043.3,3043.2,11.17420412]
[1764367013247,0.30518698,3043.3,3043.2,11.73789256]
[1764367019151,0.30718698,3043.3,3043.2,11.73789256]
[1764367025766,0.30718698,3043.3,3043.2,11.53089256]
[1764367026062,0.30718698,3043.3,3043.2,11.73789256]
[1764367029941,0.002,3043.3,3043.2,11.73789256]
[1764367030140,0.30735103,3043.3,3043.2,11.17250412]
[1764367031865,0.30735103,3043.3,3043.2,10.67480412]
[1764367032162,0.30735103,3043.3,3043.2,10.77469256]
[1764367032334,0.30735103,3043.3,3043.2,11.27239256]
[1764367032535,0.30735103,3043.3,3043.2,11.2715473]
[1764367033770,0.30735103,3043.3,3043.2,9.9108433]
[1764367034650,0.30735103,3043.3,3043.2,10.4085433]
[1764367037888,0.30735103,3043.3,3043.2,10.8624433]
[1764367039498,0.30735103,3043.3,3043.2,10.4085433]
[1764367040354,0.30735103,3043.3,3043.2,10.8624433]
[1764367041669,0.30735103,3043.3,3043.2,10.30865486]
[1764367041869,0.30735103,3043.3,3043.2,10.4085433]
[1764367042090,0.30735103,3043.3,3043.2,10.8624433]